fUSD/lending_fUSD_20250622
["ID","MTS","AMOUNT","RATE_DAILY","PERIOD"]
[367030451,1750623072333,-494.04556876,0.0003589,15]
[367030452,1750623072342,-495.13645917,0.0003589,15]
[367030453,1750623072351,-1111.1,0.0003589,15]
[367030454,1750623072361,-490.0,0.0003589,15]
[367030455,1750623072371,-490.0,0.0003589,15]
[367030456,1750623072381,-490.0,0.0003589,15]
[367030457,1750623072391,-958.95,0.0003589,15]
[367030458,1750623072401,-490.0,0.0003589,15]
[367030459,1750623072411,-1923.24,0.0003589,15]
[367030460,1750623072420,-490.0,0.0003589,15]
[367030461,1750623072430,-550.96,0.0003589,15]
[367030462,1750623072440,-554.3,0.0003589,15]
[367030463,1750623072449,-490.0,0.0003589,15]
[367030464,1750623072458,-246.23396338,0.0003589,15]
[367030465,1750623072467,-481.26417355,0.0003589,15]
[367030466,1750623072477,-490.0,0.0003589,15]
[367030467,1750623072486,-490.0,0.0003589,15]
[367030468,1750623072495,-490.0,0.0003589,15]
[367030469,1750623072504,-1947.15,0.0003589,15]
[367030470,1750623072513,-2036.74,0.0003589,15]
[367030471,1750623072525,-490.0,0.0003589,15]
[367030472,1750623072538,-563.72,0.0003589,15]
[367030473,1750623072548,-2127.54,0.0003589,15]
[367030474,1750623072558,-2066.45,0.0003589,15]
[367030475,1750623072567,-490.0,0.0003589,15]
[367030476,1750623072577,-1971.77,0.0003589,15]
[367030477,1750623072587,-204.28608135,0.0003589,15]
[367030478,1750623072596,-490.0,0.0003589,15]
[367030479,1750623072606,-752.15,0.0003589,15]
[367030480,1750623072616,-490.0,0.0003589,15]
[367030481,1750623072625,-841.2,0.0003589,15]
[367030482,1750623072634,-490.0,0.0003589,15]
[367030483,1750623072643,-490.0,0.0003589,15]
[367030484,1750623072654,-490.0,0.0003589,15]
[367030485,1750623072665,-490.0,0.0003589,15]
[367030486,1750623072676,-184.17832197,0.0003589,15]
[367030487,1750623072685,-490.0,0.0003589,15]
[367030488,1750623072695,-490.0,0.0003589,15]
[367030489,1750623072705,-490.0,0.0003589,15]
[367030490,1750623072716,-1251.91,0.0003589,15]
[367030491,1750623072726,-490.0,0.0003589,15]
[367030492,1750623072736,-490.0,0.0003589,15]
[367030493,1750623072746,-622.63,0.0003589,15]
[367030494,1750623072755,-1178.89,0.0003589,15]
[367030495,1750623072765,-1033.09,0.0003589,15]
[367030496,1750623072777,-490.0,0.0003589,15]
[367030497,1750623072787,-490.0,0.0003589,15]
[367030498,1750623072797,-490.0,0.0003589,15]
[367030499,1750623072807,-490.0,0.0003589,15]
[367030500,1750623072816,-490.0,0.0003589,15]
[367030501,1750623072826,-1526.6,0.0003589,15]
[367030502,1750623072836,-1732.58,0.0003589,15]
[367030503,1750623072850,-2330.89,0.0003589,15]
[367030504,1750623072864,-569.23,0.0003589,15]
[367030505,1750623072879,-490.0,0.0003589,15]
[367030506,1750623072890,-557.28,0.0003589,15]
[367030507,1750623072900,-490.0,0.0003589,15]
[367030508,1750623072910,-490.0,0.0003589,15]
[367030509,1750623072919,-794.83,0.0003589,15]
[367030510,1750623072928,-490.0,0.0003589,15]
[367030511,1750623072938,-843.87,0.0003589,15]
[367030512,1750623072947,-490.0,0.0003589,15]
[367030513,1750623072957,-490.0,0.0003589,15]
[367030514,1750623072967,-490.0,0.0003589,15]
[367030515,1750623072976,-490.0,0.0003589,15]
[367030516,1750623072985,-490.0,0.0003589,15]
[367030517,1750623072995,-1918.9,0.0003589,15]
[367030518,1750623073004,-490.0,0.0003589,15]
[367030519,1750623073013,-170.02739087,0.0003589,15]
[367030520,1750623073025,-502.1339335,0.0003589,15]
[367030521,1750623073034,-490.0,0.0003589,15]
[367030522,1750623073044,-490.0,0.0003589,15]
[367030523,1750623073053,-490.0,0.0003589,15]
[367030524,1750623073063,-490.0,0.0003589,15]
[367030525,1750623073072,-490.0,0.0003589,15]
[367030526,1750623073080,-674.69,0.0003589,15]
[367030527,1750623073089,-490.0,0.0003589,15]
[367030528,1750623073098,-1314.44,0.0003589,15]
[367030529,1750623073107,-497.5297443,0.0003589,15]
[367030530,1750623073116,-490.0,0.0003589,7]
[367030531,1750623073125,-562.53283317,0.0003589,15]
[367030532,1750623073134,-573.69,0.0003589,15]
[367030533,1750623073144,-490.0,0.0003589,15]
[367030534,1750623073156,-490.0,0.0003589,15]
[367030535,1750623073165,-490.0,0.0003589,15]
[367030536,1750623073175,-490.0,0.0003589,15]
[367030537,1750623073184,-1646.99,0.0003589,15]
[367030538,1750623073195,-490.0,0.0003589,15]
[367030539,1750623073206,-490.0,0.0003589,15]
[367030540,1750623073216,-1706.53,0.0003589,15]
[367030541,1750623073227,-1896.7,0.0003589,15]
[367030542,1750623073237,-1923.45,0.0003589,15]
[367030543,1750623073246,-490.0,0.0003589,7]
[367030544,1750623073255,-490.0,0.0003589,15]
[367030545,1750623073264,-1465.41,0.0003589,15]
[367030546,1750623073276,-779.86,0.0003589,15]
[367030547,1750623073285,-490.0,0.0003589,15]
[367030548,1750623073294,-882.36,0.0003589,15]
[367030549,1750623073303,-490.0,0.0003589,15]
[367030550,1750623073312,-490.0,0.0003589,15]
[367030551,1750623073323,-519.3,0.0003589,15]
[367030552,1750623073332,-1655.6,0.0003589,15]
[367030553,1750623073342,-490.0,0.0003589,15]
[367030554,1750623073351,-490.0,0.0003589,15]
[367030555,1750623073360,-490.0,0.0003589,15]
[367030556,1750623073369,-490.0,0.0003589,15]
[367030557,1750623073377,-1063.35,0.0003589,15]
[367030558,1750623073386,-490.0,0.0003589,15]
[367030559,1750623073395,-886.52,0.0003589,15]
[367030560,1750623073404,-490.0,0.0003589,15]
[367030561,1750623073413,-490.0,0.0003589,15]
[367030562,1750623073422,-490.0,0.0003589,15]
[367030563,1750623073431,-490.0,0.0003589,15]
[367030564,1750623073440,-1532.64,0.0003589,15]
[367030565,1750623073449,-1090.39,0.0003589,15]
[367030566,1750623073459,-182.41154209,0.0003589,15]
[367030567,1750623073468,-490.0,0.0003589,15]
[367030568,1750623073477,-490.0,0.0003589,15]
[367030569,1750623073486,-490.0,0.0003589,15]
[367030570,1750623073495,-490.0,0.0003589,15]
[367030571,1750623073504,-1583.32,0.0003589,15]
[367030572,1750623073513,-490.0,0.0003589,15]
[367030573,1750623073524,-2259.05,0.0003589,15]
[367030574,1750623073533,-490.0,0.0003589,15]
[367030575,1750623073542,-809.54,0.0003589,15]
[367030576,1750623073552,-954.98,0.0003589,15]
[367030577,1750623073560,-1108.87,0.0003589,15]
[367030578,1750623073570,-490.0,0.0003589,15]
[367030579,1750623073584,-490.0,0.0003589,15]
[367030580,1750623073595,-490.0,0.0003589,15]
[367030581,1750623073604,-764.87,0.0003589,15]
[367030582,1750623073613,-498.45,0.0003589,15]
[367030583,1750623073623,-528.96555486,0.0003589,15]
[367030584,1750623073632,-490.0,0.0003589,15]
[367030585,1750623073641,-1030.96,0.0003589,15]
[367030586,1750623073650,-490.0,0.0003589,15]
[367030587,1750623073659,-1705.66,0.0003589,15]
[367030588,1750623073669,-490.0,0.0003589,15]
[367030589,1750623073678,-769.06,0.0003589,15]
[367030590,1750623073687,-490.0,0.0003589,15]
[367030591,1750623073696,-490.0,0.0003589,15]
[367030592,1750623073705,-757.66,0.0003589,15]
[367030593,1750623073714,-958.05,0.0003589,15]
[367030594,1750623073723,-490.0,0.0003589,15]
[367030595,1750623073732,-490.0,0.0003589,15]
[367030596,1750623073741,-490.0,0.0003589,15]
[367030597,1750623073749,-972.54,0.0003589,15]
[367030598,1750623073759,-1045.31,0.0003589,15]
[367030599,1750623073768,-507.13,0.0003589,15]
[367030600,1750623073781,-1868.99,0.0003589,15]
[367030601,1750623073791,-490.0,0.0003589,15]
[367030602,1750623073799,-1703.66,0.0003589,15]
[367030603,1750623073809,-490.0,0.0003589,15]
[367030604,1750623073818,-490.0,0.0003589,15]
[367030605,1750623073827,-490.0,0.0003589,15]
[367030606,1750623073837,-490.0,0.0003589,15]
[367030607,1750623073846,-1399.22,0.0003589,15]
[367030608,1750623073857,-490.0,0.0003589,15]
[367030609,1750623073867,-1301.13,0.0003589,15]
[367030610,1750623073876,-490.0,0.0003589,15]
[367030611,1750623073886,-490.0,0.0003589,15]
[367030612,1750623073895,-490.0,0.0003589,15]
[367030613,1750623073905,-490.0,0.0003589,15]
[367030614,1750623073914,-490.0,0.0003589,15]
[367030615,1750623073923,-654.76,0.0003589,15]
[367030616,1750623073933,-490.0,0.0003589,15]
[367030617,1750623073942,-490.0,0.0003589,15]
[367030618,1750623073952,-490.0,0.0003589,15]
[367030619,1750623073961,-490.0,0.0003589,15]
[367030620,1750623073970,-490.0,0.0003589,15]
[367030621,1750623073979,-536.14,0.0003589,15]
[367030622,1750623073989,-2146.04,0.0003589,15]
[367030623,1750623073998,-1256.44,0.0003589,15]
[367030624,1750623074007,-490.0,0.0003589,15]
[367030625,1750623074016,-490.0,0.0003589,15]
[367030626,1750623074030,-490.0,0.0003589,15]
[367030627,1750623074039,-1991.16,0.0003589,15]
[367030628,1750623074050,-1118.09,0.0003589,15]
[367030629,1750623074059,-490.0,0.0003589,15]
[367030630,1750623074069,-290.7784851,0.0003589,15]
[367030631,1750623074079,-490.0,0.0003589,15]
[367030632,1750623074087,-1301.68,0.0003589,15]
[367030633,1750623074097,-490.0,0.0003589,15]
[367030634,1750623074108,-2093.47,0.0003589,15]
[367030635,1750623074117,-152.29881479,0.0003589,15]
[367030636,1750623074127,-1138.32,0.0003589,15]
[367030637,1750623074136,-1552.82,0.0003589,15]
[367030638,1750623074145,-625.24,0.0003589,15]
[367030639,1750623074154,-490.0,0.0003589,15]
[367030640,1750623074164,-490.0,0.0003589,15]
[367030641,1750623074173,-1509.09,0.0003589,15]
[367030642,1750623074184,-1794.71,0.0003589,15]
[367030643,1750623074193,-656.93,0.0003589,15]
[367030644,1750623074203,-262.46304438,0.0003589,15]
[367030645,1750623074212,-3146.84,0.0003589,15]
[367030646,1750623074221,-490.0,0.0003589,15]
[367030647,1750623074231,-490.0,0.0003589,15]
[367030648,1750623074240,-1267.42,0.0003589,15]
[367030649,1750623074250,-819.95,0.0003589,15]
[367030650,1750623074260,-1172.57,0.0003589,15]
[367030651,1750623074269,-1008.17,0.0003589,15]
[367030652,1750623074281,-2880.97,0.0003589,15]
[367030653,1750623074290,-490.0,0.0003589,15]
[367030654,1750623074300,-490.0,0.0003589,15]
[367030655,1750623074310,-490.0,0.0003589,15]
[367030656,1750623074319,-490.0,0.0003589,15]
[367030657,1750623074329,-490.0,0.0003589,15]
[367030658,1750623074338,-1397.05,0.0003589,15]
[367030659,1750623074347,-490.0,0.0003589,15]
[367030660,1750623074357,-490.0,0.0003589,15]
[367030661,1750623074366,-968.44,0.0003589,15]
[367030662,1750623074376,-490.0,0.0003589,15]
[367030663,1750623074385,-490.0,0.0003589,15]
[367030664,1750623074395,-1987.58,0.0003589,15]
[367030665,1750623074404,-490.0,0.0003589,15]
[367030666,1750623074414,-490.0,0.0003589,15]
[367030667,1750623074423,-643.07,0.0003589,15]
[367030668,1750623074433,-490.0,0.0003589,15]
[367030669,1750623074442,-490.0,0.0003589,15]
[367030670,1750623074451,-490.0,0.0003589,15]
[367030671,1750623074461,-490.0,0.0003589,15]
[367030672,1750623074470,-2472.69,0.0003589,15]
[367030673,1750623074479,-490.0,0.0003589,15]
[367030674,1750623074489,-210.0,0.0003589,15]
[367030675,1750623074499,-490.0,0.0003589,15]
[367030676,1750623074508,-1581.01,0.0003589,15]
[367030677,1750623074518,-490.0,0.0003589,15]
[367030678,1750623074530,-490.0,0.0003589,15]
[367030679,1750623074540,-490.0,0.0003589,15]
[367030680,1750623074549,-490.0,0.0003589,15]
[367030681,1750623074559,-713.45,0.0003589,15]
[367030682,1750623074568,-490.0,0.0003589,15]
[367030683,1750623074578,-1332.01,0.0003589,15]
[367030684,1750623074588,-490.0,0.0003589,15]
[367030685,1750623074598,-490.0,0.0003589,15]
[367030686,1750623074607,-482.24888601,0.0003589,15]
[367030687,1750623074617,-490.0,0.0003589,15]
[367030688,1750623074627,-1861.84,0.0003589,15]
[367030689,1750623074636,-490.0,0.0003589,15]
[367030690,1750623074646,-490.0,0.0003589,15]
[367030691,1750623074656,-490.0,0.0003589,15]
[367030692,1750623074665,-490.0,0.0003589,15]
[367030693,1750623074675,-2023.73,0.0003589,15]
[367030694,1750623074684,-490.0,0.0003589,15]
[367030695,1750623074694,-506.43015456,0.0003589,15]
[367030696,1750623074703,-1591.1,0.0003589,15]
[367030697,1750623074713,-490.0,0.0003589,15]
[367030698,1750623074722,-490.0,0.0003589,15]
[367030699,1750623074732,-490.0,0.0003589,15]
[367030700,1750623074741,-490.0,0.0003589,15]
[367030701,1750623074751,-414.33757556,0.0003589,15]
[367030702,1750623074760,-1754.05,0.0003589,15]
[367030703,1750623074770,-490.0,0.0003589,15]
[367030704,1750623074783,-490.0,0.0003589,15]
[367030705,1750623074793,-490.0,0.0003589,15]
[367030706,1750623074803,-3961.99,0.0003589,15]
[367030707,1750623074812,-490.0,0.0003589,15]
[367030708,1750623074822,-588.0,0.0003589,15]
[367030709,1750623074832,-490.0,0.0003589,15]
[367030710,1750623074845,-490.0,0.0003589,15]
[367030711,1750623074855,-490.0,0.0003589,15]
[367030712,1750623074865,-447.11301207,0.0003589,15]
[367030713,1750623074875,-490.0,0.0003589,15]
[367030714,1750623074886,-824.41,0.0003589,15]
[367030715,1750623074895,-492.94626813,0.0003589,15]
[367030716,1750623074905,-1314.71,0.0003589,15]
[367030717,1750623074915,-490.0,0.0003589,15]
[367030718,1750623074925,-490.0,0.0003589,15]
[367030719,1750623074935,-490.0,0.0003589,15]
[367030720,1750623074944,-490.0,0.0003589,15]
[367030721,1750623074954,-1977.55,0.0003589,15]
[367030722,1750623074964,-490.0,0.0003589,15]
[367030723,1750623074973,-490.0,0.0003589,15]
[367030724,1750623074983,-490.0,0.0003589,15]
[367030725,1750623074993,-490.0,0.0003589,15]
[367030726,1750623075003,-490.0,0.0003589,15]
[367030727,1750623075012,-490.0,0.0003589,15]
[367030728,1750623075022,-490.0,0.0003589,15]
[367030729,1750623075035,-2209.61,0.0003589,15]
[367030730,1750623075045,-637.76551582,0.0003589,15]
[367030731,1750623075054,-490.0,0.0003589,15]
[367030732,1750623075064,-490.0,0.0003589,15]
[367030733,1750623075075,-490.0,0.0003589,15]
[367030734,1750623075084,-1229.85,0.0003589,15]
[367030735,1750623075094,-490.0,0.0003589,15]
[367030736,1750623075104,-861.9,0.0003589,15]
[367030737,1750623075113,-490.0,0.0003589,15]
[367030738,1750623075123,-490.0,0.0003589,15]
[367030739,1750623075133,-490.0,0.0003589,15]
[367030740,1750623075143,-1217.63,0.0003589,15]
[367030741,1750623075153,-832.77,0.0003589,15]
[367030742,1750623075162,-490.0,0.0003589,15]
[367030743,1750623075172,-2349.97,0.0003589,15]
[367030744,1750623075182,-490.0,0.0003589,15]
[367030745,1750623075191,-490.0,0.0003589,15]
[367030746,1750623075201,-679.89,0.0003589,15]
[367030747,1750623075211,-490.0,0.0003589,15]
[367030748,1750623075234,-490.0,0.0003589,15]
[367030749,1750623075244,-1003.86,0.0003589,15]
[367030750,1750623075254,-1059.75,0.0003589,15]
[367030751,1750623075263,-490.0,0.0003589,15]
[367030752,1750623075277,-490.0,0.0003589,15]
[367030753,1750623075287,-284.44386555,0.0003589,15]
[367030754,1750623075297,-3235.37,0.0003589,2]
[367030755,1750623075307,-490.0,0.0003589,15]
[367030756,1750623075316,-490.0,0.0003589,15]
[367030757,1750623075326,-658.99,0.0003589,15]
[367030758,1750623075336,-490.0,0.0003589,15]
[367030759,1750623075346,-1934.4,0.0003589,15]
[367030760,1750623075355,-1684.67,0.0003589,15]
[367030761,1750623075365,-490.0,0.0003589,15]
[367030762,1750623075375,-490.0,0.0003589,15]
[367030763,1750623075384,-490.0,0.0003589,15]
[367030764,1750623075394,-490.0,0.0003589,15]
[367030765,1750623075404,-490.0,0.0003589,15]
[367030766,1750623075414,-490.0,0.0003589,15]
[367030767,1750623075424,-1339.11,0.0003589,15]
[367030768,1750623075434,-620.32,0.0003589,15]
[367030769,1750623075444,-576.99,0.0003589,15]
[367030770,1750623075454,-2587.68,0.0003589,15]
[367030771,1750623075464,-3348.94,0.0003589,15]
[367030772,1750623075473,-691.75,0.0003589,15]
[367030773,1750623075483,-490.0,0.0003589,15]
[367030774,1750623075492,-490.0,0.0003589,14]
[367030775,1750623075503,-490.0,0.0003589,15]
[367030776,1750623075512,-727.36,0.0003589,15]
[367030777,1750623075522,-2834.14,0.0003589,15]
[367030778,1750623075534,-490.0,0.0003589,15]
[367030779,1750623075543,-490.0,0.0003589,15]
[367030780,1750623075553,-490.0,0.0003589,15]
[367030781,1750623075564,-490.0,0.0003589,15]
[367030782,1750623075574,-490.0,0.0003589,15]
[367030783,1750623075584,-490.0,0.0003589,15]
[367030784,1750623075594,-279.38208531,0.0003589,15]
[367030785,1750623075603,-490.0,0.0003589,15]
[367030786,1750623075613,-778.0,0.0003589,15]
[367030787,1750623075623,-1144.72,0.0003589,15]
[367030788,1750623075633,-768.07,0.0003589,15]
[367030789,1750623075642,-490.0,0.0003589,15]
[367030790,1750623075652,-1027.25,0.0003589,15]
[367030791,1750623075663,-490.0,0.0003589,15]
[367030792,1750623075673,-640.48,0.0003589,15]
[367030793,1750623075683,-490.0,0.0003589,15]
[367030794,1750623075693,-490.0,0.0003589,15]
[367030795,1750623075704,-490.0,0.0003589,15]
[367030796,1750623075714,-490.0,0.0003589,15]
[367030797,1750623075723,-490.0,0.0003589,15]
[367030798,1750623075733,-490.0,0.0003589,15]
[367030799,1750623075743,-490.0,0.0003589,15]
[367030800,1750623075752,-490.0,0.0003589,15]
[367030801,1750623075763,-490.0,0.0003589,15]
[367030802,1750623075773,-2109.67,0.0003589,15]
[367030803,1750623075786,-1879.25,0.0003589,15]
[367030804,1750623075796,-490.0,0.0003589,15]
[367030805,1750623075806,-742.62,0.0003589,15]
[367030806,1750623075815,-490.0,0.0003589,15]
[367030807,1750623075825,-493.72107705,0.0003589,15]
[367030808,1750623075835,-490.0,0.0003589,15]
[367030809,1750623075850,-490.0,0.0003589,15]
[367030810,1750623075860,-490.0,0.0003589,15]
[367030811,1750623075870,-1075.23,0.0003589,15]
[367030812,1750623075880,-499.28324349,0.0003589,15]
[367030813,1750623075893,-828.03,0.0003589,15]
[367030814,1750623075902,-490.0,0.0003589,15]
[367030815,1750623075913,-490.0,0.0003589,15]
[367030816,1750623075924,-490.0,0.0003589,15]
[367030817,1750623075935,-490.0,0.0003589,15]
[367030818,1750623075945,-1088.71,0.0003589,15]
[367030819,1750623075955,-490.0,0.0003589,15]
[367030820,1750623075965,-490.0,0.0003589,15]
[367030821,1750623075976,-3143.04,0.0003589,15]
[367030822,1750623075986,-490.0,0.0003589,15]
[367030823,1750623075996,-490.0,0.0003589,15]
[367030824,1750623076007,-742.73,0.0003589,15]
[367030825,1750623076017,-490.0,0.0003589,15]
[367030826,1750623076028,-517.63,0.0003589,15]
[367030827,1750623076039,-2097.11,0.0003589,15]
[367030828,1750623076049,-490.0,0.0003589,15]
[367030829,1750623076058,-2355.34,0.0003589,15]
[367030830,1750623076068,-499.0125509,0.0003589,15]
[367030831,1750623076080,-490.0,0.0003589,15]
[367030832,1750623076090,-490.0,0.0003589,15]
[367030833,1750623076102,-490.0,0.0003589,15]
[367030834,1750623076114,-649.0,0.0003589,15]
[367030835,1750623076125,-2199.48,0.0003589,15]
[367030836,1750623076135,-490.0,0.0003589,15]
[367030837,1750623076146,-1415.25,0.0003589,15]
[367030838,1750623076155,-603.99,0.0003589,15]
[367030839,1750623076166,-490.0,0.0003589,15]
[367030840,1750623076176,-1050.32,0.0003589,15]
[367030841,1750623076186,-490.0,0.0003589,15]
[367030842,1750623076196,-370.41518695,0.0003589,15]
[367030843,1750623076206,-3076.28,0.0003589,15]
[367030844,1750623076216,-2112.09,0.0003589,15]
[367030845,1750623076230,-1166.28,0.0003589,15]
[367030846,1750623076240,-490.0,0.0003589,15]
[367030847,1750623076250,-881.74,0.0003589,15]
[367030848,1750623076260,-490.0,0.0003589,15]
[367030849,1750623076269,-848.78,0.0003589,15]
[367030850,1750623076282,-2630.02,0.0003589,15]
[367030851,1750623076292,-855.43,0.0003589,15]
[367030852,1750623076302,-2967.31,0.0003589,15]
[367030853,1750623076311,-490.0,0.0003589,15]
[367030854,1750623076322,-2172.4,0.0003589,15]
[367030855,1750623076331,-684.08,0.0003589,7]
[367030856,1750623076341,-490.0,0.0003589,15]
[367030857,1750623076350,-575.22482938,0.0003589,15]
[367030858,1750623076361,-575.21,0.0003589,15]
[367030859,1750623076371,-490.0,0.0003589,15]
[367030860,1750623076381,-490.0,0.0003589,15]
[367030861,1750623076390,-490.0,0.0003589,15]
[367030862,1750623076399,-490.0,0.0003589,15]
[367030863,1750623076409,-490.0,0.0003589,15]
[367030864,1750623076420,-490.0,0.0003589,15]
[367030865,1750623076431,-817.54,0.0003589,15]
[367030866,1750623076441,-490.0,0.0003589,15]
[367030867,1750623076452,-1708.69,0.0003589,15]
[367030868,1750623076464,-490.0,0.0003589,15]
[367030869,1750623076762,-490.0,0.0003589,15]
[367030870,1750623076773,-490.0,0.0003589,15]
[367030871,1750623076787,-2149.8,0.0003589,15]
[367030872,1750623076796,-490.0,0.0003589,15]
[367030873,1750623076806,-1041.02,0.0003589,15]
[367030874,1750623076815,-490.0,0.0003589,15]
[367030875,1750623076825,-490.0,0.0003589,15]
[367030876,1750623076835,-490.0,0.0003589,15]
[367030877,1750623076846,-2438.09,0.0003589,15]
[367030878,1750623076857,-1517.34,0.0003589,15]
[367030879,1750623076867,-9860.11,0.0003589,15]
[367030880,1750623076876,-1116.35,0.0003589,15]
[367030881,1750623076887,-490.0,0.0003589,15]
[367030882,1750623076896,-682.92,0.0003589,15]
[367030883,1750623076906,-2371.74,0.0003589,15]
[367030884,1750623076915,-490.0,0.0003589,15]
[367030885,1750623076925,-1476.17,0.0003589,15]
[367030886,1750623076935,-348.40089738,0.0003589,15]
[367030887,1750623076945,-490.0,0.0003589,7]
[367030888,1750623076955,-490.0,0.0003589,15]
[367030889,1750623076965,-1119.85,0.0003589,15]
[367030890,1750623076975,-2193.19,0.0003589,15]
[367030891,1750623076985,-407.75657292,0.0003589,15]
[367030892,1750623076994,-490.0,0.0003589,15]
[367030893,1750623077004,-1492.62,0.0003589,15]
[367030894,1750623077014,-1962.92,0.0003589,15]
[367030895,1750623077024,-490.0,0.0003589,15]
[367030896,1750623077040,-490.0,0.0003589,15]
[367030897,1750623077050,-1266.89,0.0003589,15]
[367030898,1750623077060,-490.0,0.0003589,15]
[367030899,1750623077069,-490.0,0.0003589,15]
[367030900,1750623077079,-1698.23,0.0003589,15]
[367030901,1750623077088,-490.0,0.0003589,15]
[367030902,1750623077098,-490.0,0.0003589,15]
[367030903,1750623077107,-744.1,0.0003589,15]
[367030904,1750623077118,-490.0,0.0003589,15]
[367030905,1750623077127,-1072.64,0.0003589,15]
[367030906,1750623077137,-1628.34,0.0003589,15]
[367030907,1750623077147,-490.0,0.0003589,15]
[367030908,1750623077156,-490.0,0.0003589,15]
[367030909,1750623077166,-3842.56,0.0003589,15]
[367030910,1750623077176,-590.66,0.0003589,15]
[367030911,1750623077186,-490.0,0.0003589,15]
[367030912,1750623077196,-490.0,0.0003589,15]
[367030913,1750623077206,-12040.91,0.0003589,15]
[367030914,1750623077215,-490.0,0.0003589,15]
[367030915,1750623077225,-490.0,0.0003589,15]
[367030916,1750623077235,-2625.62,0.0003589,15]
[367030917,1750623077245,-490.0,0.0003589,15]
[367030918,1750623077255,-585.98,0.0003589,15]
[367030919,1750623077264,-490.0,0.0003589,15]
[367030920,1750623077274,-2167.43,0.0003589,15]
[367030921,1750623077288,-490.0,0.0003589,15]
[367030922,1750623077298,-490.0,0.0003589,15]
[367030923,1750623077308,-490.0,0.0003589,15]
[367030924,1750623077319,-490.0,0.0003589,15]
[367030925,1750623077328,-989.05,0.0003589,15]
[367030926,1750623077338,-1185.19,0.0003589,15]
[367030927,1750623077347,-1298.39,0.0003589,15]
[367030928,1750623077356,-490.0,0.0003589,15]
[367030929,1750623077366,-579.65150725,0.0003589,15]
[367030930,1750623077376,-300.0,0.0003589,15]
[367030931,1750623077385,-3871.45,0.0003589,15]
[367030932,1750623077395,-897.64,0.0003589,15]
[367030933,1750623077406,-490.0,0.0003589,15]
[367030934,1750623077416,-1629.11,0.0003589,15]
[367030935,1750623077426,-490.0,0.0003589,15]
[367030936,1750623077436,-490.0,0.0003589,15]
[367030937,1750623077445,-597.32,0.0003589,15]
[367030938,1750623077455,-7793.54,0.0003589,15]
[367030939,1750623077465,-1361.81,0.0003589,15]
[367030940,1750623077474,-631.27,0.0003589,15]
[367030941,1750623077485,-490.0,0.0003589,15]
[367030942,1750623077494,-6394.85,0.0003589,15]
[367030943,1750623077504,-490.0,0.0003589,15]
[367030944,1750623077513,-490.0,0.0003589,15]
[367030945,1750623077524,-490.0,0.0003589,15]
[367030946,1750623077536,-1917.93,0.0003589,15]
[367030947,1750623077546,-490.0,0.0003589,15]
[367030948,1750623077555,-738.47,0.0003589,15]
[367030949,1750623077565,-490.0,0.0003589,15]
[367030950,1750623077575,-5559.1,0.0003589,15]